Workbook

Sheet 0002
AJ1: 事業番号 | AQ1: 2
A2: 30 | AI2: （ | AJ2: 人事院 | AX2: ）
A3: 事業名 | G3: 人事・給与等業務の電子化の推進 | Y3: 担当部局庁 | AE3: 事務総局 | AQ3: 作成責任者
A4: 事業開始年度 | G4: 平成15年度 | M4: 事業終了 （予定）年度 | S4: 終了予定なし | Y4: 担当課室 | AE4: 電子化推進室 | AQ4: 事務総局参事官 柳田健一
A5: 会計区分 | G5: 一般会計
A6: 根拠法令 （具体的な 条項も記載） | G6: - | Y6: 関係する計画、通知等 | AE6: 人事・給与等業務・システム最適化計画 （平成16年2月27日・各府省情報化統括責任者（CIO）連絡会議決定、平成29年2月28日最終改定）
A7: 主要政策・施策 | G7: ＩＴ戦略 | Y7: 主要経費 | AE7: その他の事項経費
A8: 事業の目的 （目指す姿を簡潔に。3行程度以内） | G8: 人事・給与等業務の共通化・効率化を図るとともに、システムの運用等に係る政府全体の経費の最小限化を行う。また同時に、安全性・信頼性の確保及び個人情報の保護を実現する。
A9: 事業概要 （5行程度以内。別添可） | G9: 各府省等が必要に応じて個別にシステム化を実施している人事・給与等業務について、上記「人事・給与等業務・システム最適化計画」に基づき、各府省等が共同で利用する「人事・給与関係業務情報システム」（以下「人事・給与システム」という。）を新たに構築することにより、情報システムの統一化・集中化、情報の電子化と処理の自動化等による業務の効率化を目指す。平成22年度から各府省等での人事・給与システム導入作業が開始されたことに伴い、運用センター業務、ヘルプデスク業務等を開始すると共に、必要となるハードウェアの調達や各府省等の移行支援等を実施し、「人事給与業務効率化に向けた改善計画（平成27年3月27日 人事給与業務効率化推進会議決定、平成27年8月7日改定）」に定める移行スケジュールのとおり、平成28年度末時点で並行稼働であった５府省等の全てについて本番稼働開始を実現し、平成29年度までに移行を予定していた府省等（全職員約27.3万人（常勤））全てにおいて移行が完了した。なお、平成30年度に参議院、平成33年度に裁判所の本番稼働開始に向けて移行支援を実施している。
A10: 実施方法 | G10: 委託・請負
A11: 予算額・ 執行額 （単位:百万円） | P11: =W11-1 -> 27 | W11: =AD11-1 -> 28 | AD11: =AK11-1 -> 29 | AK11: =A2 -> 30 | AR11: =AK11+1 -> 31
G12: 予算の状況 | I12: 当初予算 | P12: 2699 | W12: 2684 | AD12: 2474 | AK12: 2885
I13: 補正予算 | P13: 0 | W13: 33 | AD13: 0
I14: 前年度から繰越し | P14: 0 | W14: 703 | AD14: 0 | AK14: 0
I15: 翌年度へ繰越し | P15: -703 | W15: 0 | AD15: 0
I16: 予備費等 | P16: 4 | W16: 147 | AD16: 155
I17: 計 | P17: 2000 | W17: =SUM(W12:AC16) -> 3567 | AD17: =SUM(AD12:AJ16) -> 2629 | AK17: =SUM(AK12:AQ16) -> 2885
G18: 執行額 | P18: 2000 | W18: 3577 | AD18: 2627
G19: 執行率（％） | P19: =P18/P17 -> 1 | W19: =W18/W17 -> 1.002803476 | AD19: =AD18/AD17 -> 0.9992392545
G20: 当初予算＋補正予算に対する執行額の割合（％） | P20: =P18/SUM(P12:V13) -> 0.7410151908 | W20: =W18/SUM(W12:AC13) -> 1.31652558 | AD20: =AD18/SUM(AD12:AJ13) -> 1.061843169
A21: 平成30・31年度 予算内訳 （単位：百万円） | G21: 歳出予算目 | P21: =AK11 -> 30 | W21: =P21+1 -> 31 | AD21: 主な増減理由
G22: 情報処理業務庁費 | P22: 2881.9
G23: 庁費 | P23: 2.7
G24: 職員旅費 | P24: 0.2
G28: 計 | P28: =AK12 -> 2885 | W28: =AR12 -> 0
A29: 成果目標及び 成果実績 （アウトカム） | G29: 定量的な成果目標 | P29: 成果指標 | AB29: 単位 | AE29: =AI29-1 -> 27 | AI29: =AM29-1 -> 28 | AM29: =P21-1 -> 29 | AQ29: 中間目標 | AU29: 目標最終年度
AQ30: - | AS30: 年度 | AU30: 31 | AW30: 年度
G31: コスト削減の取組により、人事・給与システムの運用経費は、平成26年度の運用経費19.2億円を基準として、平成31年度までに、機器等の見直しにより、約5.8億円の経費削減を見込んでいる。 | P31: 人事・給与システムの運用経費（特別会計を含む） | Y31: 成果実績 | AB31: 億円 | AE31: -2.9 | AI31: -2.1 | AM31: -1 | AQ31: - | AU31: -
Y32: 目標値 | AB32: 億円 | AE32: - | AI32: - | AM32: - | AQ32: - | AU32: -5.8
Y33: 達成度 | AB33: ％ | AE33: =AE31/$AU32*100 -> 50 | AI33: =AI31/$AU32*100 -> 36.20689655 | AM33: =AM31/$AU32*100 -> 17.24137931 | AQ33: - | AU33: -
G34: 定量的な成果目標 | P34: 成果指標 | AB34: 単位 | AE34: =AI29-1 -> 27 | AI34: =AM29-1 -> 28 | AM34: =P21-1 -> 29 | AQ34: 中間目標 | AU34: 目標最終年度
AS35: 年度 | AW35: 年度
Y36: 成果実績
Y37: 目標値
Y38: 達成度 | AB38: ％ | AE38: =AE36/AE37*100 ->  | AI38: =AI36/AI37*100 ->  | AM38: =AM36/AM37*100 ->  | AQ38: =IF(AQ36<>0,AQ36/AQ37*100,"") ->  | AU38: =IF(AU36<>0,AU36/AU37*100,"") -> 
A39: 根拠として用いた 統計・データ名 （出典） | G39: 世界最先端ＩＴ国家創造宣言（平成28年5月20日閣議決定、平成29年5月30日廃止） 世界最先端IT国家創造宣言・官民データ活用推進基本計画（平成29年5月30日閣議決定）
A40: 定量的な成果目標の設定が困難な場合 | B40: 定量的な目標が設定できない理由及び定性的な成果目標 | G40: 定量的な目標が設定できない理由 | AB40: 定性的な成果目標と26～28年度の達成状況・実績
B45: 事業の妥当性を検証するための代替的な達成目標及び実績 | G45: 代替目標 | P45: 代替指標 | AB45: 単位 | AE45: =AE29 -> 27 | AI45: =AI29 -> 28 | AM45: =AM29 -> 29 | AQ45: 中間目標 | AU45: 目標最終年度
AS46: 年度 | AW46: 年度
Y47: 実績
Y48: 目標値
Y49: 達成度 | AB49: ％ | AE49: =AE47/AE48*100 ->  | AI49: =AI47/AI48*100 ->  | AM49: =AM47/AM48*100 ->  | AQ49: =AQ47/AQ48*100 ->  | AU49: =AU47/AU48*100 -> 
G50: 代替目標 | P50: 代替指標 | AB50: 単位 | AE50: =AE29 -> 27 | AI50: =AI29 -> 28 | AM50: =AM29 -> 29 | AQ50: 中間目標 | AU50: 目標最終年度
AS51: 年度 | AW51: 年度
Y52: 実績
Y53: 目標値
Y54: 達成度 | AB54: ％ | AE54: =AE52/AE53*100 ->  | AI54: =AI52/AI53*100 ->  | AM54: =AM52/AM53*100 ->  | AQ54: =AQ52/AQ53*100 ->  | AU54: =AU52/AU53*100 -> 
A55: 活動指標及び 活動実績 （アウトプット） | G55: 活動指標 | AB55: 単位 | AE55: =AE50 -> 27 | AI55: =AI50 -> 28 | AM55: =AM50 -> 29 | AQ55: =AM55+1 -> 30 | AU55: =AQ55+1 -> 31
G56: 年度末における本番稼働府省等の数 （年度末における並行稼働府省等の数） | Y56: 活動実績 | AB56: 府省等の数 | AE56: 12（6） | AI56: 24（5） | AM56: 29（0）
Y57: 当初見込み | AB57: 府省等の数 | AE57: 12（6） | AI57: 24（5） | AM57: 29（0） | AQ57: 30（-） | AU57: 30（-）
Y58: 活動実績
Y59: 当初見込み
Y60: 活動実績
Y61: 当初見込み
Y62: 活動実績
Y63: 当初見込み | AQ63: 0
Y64: 活動実績
Y65: 当初見込み
A66: 単位当たり コスト | G66: 算出根拠 | AB66: 単位 | AE66: =AE55 -> 27 | AI66: =AI55 -> 28 | AM66: =AM55 -> 29 | AQ66: =AQ55 -> 30
G67: 予算額のうち運用経費額（X）／ 本番稼働府省等の年度末定員数（最大利用者数）（Y） | Y67: 単位当たり コスト | AB67: 千円/人 | AE67: 移行途上につき算出困難。なお、調達に当たっては、「技術審査委員会」に諮って、適正な予算執行に努めた。 | AQ67: 6.7
Y68: 計算式 | AB68: X/Y | AQ68: 1,834,344/273,950
A69: 事業所管部局による点検・改善
C70: 項 目 | AD70: 評 価 | AG70: 評価に関する説明
A71: 国費投入の必要性 | C71: 事業の目的は国民や社会のニーズを的確に反映しているか。 | AD71: ○ | AG71: 人事・給与システムは、国家公務員の人事・給与に直接的に影響を与える情報を扱う極めて重要なシステムであり、国が責任を持ってシステム構築を行うべき業務である。
C72: 地方自治体、民間等に委ねることができない事業なのか。 | AD72: ○
C73: 政策目的の達成手段として必要かつ適切な事業か。政策体系の中で優先度の高い事業か。 | AD73: ○
A74: 事業の効率性 | C74: 競争性が確保されているなど支出先の選定は妥当か。 | AD74: ○ | AG74: 調達に当たっては、国庫債務負担行為を活用するとともに、原則、一般競争入札にて調達しており、さらに総合評価方式の案件については、情報システムに関する外部有識者を含む「技術審査委員会」を開催し、適正な調達手続き及び予算執行に努めているところである。また、支出の内容は、「人事・給与等業務・システム最適化計画」及び「人事給与業務効率化に向けた改善計画」（以下「改善計画」という。）により決定された業務処理のシステム構築・運用のために必要なものに限定されている。
E75: 一般競争入札、総合評価入札又は随意契約（企画競争）による支出のうち、一者応札又は一者応募となったものはないか。 | AD75: 有
E76: 競争性のない随意契約となったものはないか。 | AD76: 有
C77: 受益者との負担関係は妥当であるか。 | AD77: ○
C78: 単位当たりコスト等の水準は妥当か。 | AD78: ‐
C79: 資金の流れの中間段階での支出は合理的なものとなっているか。 | AD79: ○
C80: 費目・使途が事業目的に即し真に必要なものに限定されているか。 | AD80: ○
C81: 不用率が大きい場合、その理由は妥当か。（理由を右に記載） | AD81: ‐
C82: 繰越額が大きい場合、その理由は妥当か。（理由を右に記載） | AD82: ‐
C83: その他コスト削減や効率化に向けた工夫は行われているか。 | AD83: ○
A84: 事業の有効性 | C84: 成果実績は成果目標に見合ったものとなっているか。 | AD84: △ | AG84: 平成29年度までに移行を予定していた府省等全てにおいて移行が完了した。運用経費については、学習ツールの作成や運用管理端末等のバージョンアップ等の経費の発生により、平成28年度と比較し増額となった。引き続き目標達成に向けた取組を実施する。
C85: 事業実施に当たって他の手段・方法等が考えられる場合、それと比較してより効果的あるいは低コストで実施できているか。 | AD85: ○
C86: 活動実績は見込みに見合ったものであるか。 | AD86: ○
C87: 整備された施設や成果物は十分に活用されているか。 | AD87: ○
A88: 関連事業 | C88: 関連する事業がある場合、他部局・他府省等と適切な役割分担を行っているか。（役割分担の具体的な内容を各事業の右に記載）
C89: 所管府省・部局名 | P89: 事業番号 | T89: 事業名
A95: 点検・改善結果 | C95: 点検結果 | G95: ・平成29年度の人事・給与システムの運用経費について、学習ツールの作成や運用管理端末等のバージョンアップ等の経費の発生により、平成28年度と比較し増額となった。 ・運用経費以外の経費について、各種制度改正や障害・要望対応に伴うアプリケーション改修を各府省等と優先順位等を調整の上、引き続き着実かつ適切に実施する必要がある。
C96: 改善の 方向性 | G96: ・人事・給与システムの運用経費について、引き続きコスト削減の目標達成への取組を実施する。 ・運用経費以外の経費について、各府省等の改修要望を調整の上、各府省等の合意を得て年度改修計画を策定し、計画的に改修を進める。また、平成27及び28年度に実施した改善計画による性能及び機能面の取組を踏まえ、引き続き安定運用・利便性向上・効率化に繋がる見直しを実施する。
A97: 外部有識者の所見
A99: 行政事業レビュー・調達改善推進チームの所見
A101: 所見を踏まえた改善点/概算要求における反映状況
A103: 備考
A105: 関連する過去のレビューシートの事業番号
A106: =M106-1 -> 22 | E106: - | M106: =Z106-1 -> 23 | Q106: - | Z106: =AM106-1 -> 24 | AD106: 2 | AM106: =A107-1 -> 25 | AQ106: 2
A107: =M107-1 -> 26 | E107: 2 | M107: =Z107-1 -> 27 | Q107: 2 | Z107: =A108-1 -> 28 | AD107: 2
A108: =AM66 -> 29 | E108: 2
A109: 資金の流れ （資金の受け取り先が何を行っているかについて補足する） (単位：百万円) | G109: =A108 -> 29
A148: 費目・使途 （「資金の流れ」においてブロックごとに最大の金額が支出されている者について記載する。費目と使途の双方で実情が分かるように記載） | G148: A.沖電気工業（株） | AC148: B.東京センチュリー（株）
G149: 費 目 | L149: 使 途 | Y149: 金 額 (百万円） | AC149: 費 目 | AH149: 使 途 | AU149: 金 額 (百万円）
G150: 雑役務費 | L150: 人事・給与システムの改修に係るアプリケーション保守業務 | Y150: 1070 | AC150: 借料及び損料 | AH150: 人事・給与システムの機器及びソフトウェア賃貸借・保守（政府共通ＰＦへの移行） | AU150: 888
G151: 雑役務費 | L151: 人事・給与システムの次期システム更改に伴う影響調査・分析業務 | Y151: 64 | AC151: 借料及び損料 | AH151: 人事・給与システムの機器及びソフトウェア賃貸借・保守（政府共通ＰＦ） | AU151: 58
AC152: 借料及び損料 | AH152: 人事・給与システムに係る機器等賃貸借及び保守（第4期） | AU152: 1
G160: 計 | Y160: =SUM(Y150:AB159) -> 1134 | AC160: 計 | AU160: =SUM(AU150:AX159) -> 947
G161: C.富士通（株） | AC161: D.りらいあコミュニケーションズ（株）
G162: 費 目 | L162: 使 途 | Y162: 金 額 (百万円） | AC162: 費 目 | AH162: 使 途 | AU162: 金 額 (百万円）
G163: 雑役務費 | L163: 人事・給与システムの運用サービス業務（政府共通ＰＦ） | Y163: 304 | AC163: 雑役務費 | AH163: 人事・給与システムに係るヘルプデスク支援業務 | AU163: 115
G164: 雑役務費 | L164: 人事・給与システムのバックアップデータ退避等業務 | Y164: 1
G173: 計 | Y173: =SUM(Y163:AB172) -> 305 | AC173: 計 | AU173: =SUM(AU163:AX172) -> 115
G174: E.ＰｗＣコンサルティング合同会社 | AC174: F.伊藤忠テクノソリューションズ（株）
G175: 費 目 | L175: 使 途 | Y175: 金 額 (百万円） | AC175: 費 目 | AH175: 使 途 | AU175: 金 額 (百万円）
G176: 雑役務費 | L176: 人事・給与システムのプロジェクト管理支援業務（府省導入支援・本番府省運用） | Y176: 87 | AC176: 雑役務費 | AH176: 人事・給与システムのプロジェクト管理支援業務 | AU176: 36
G186: 計 | Y186: =SUM(Y176:AB185) -> 87 | AC186: 計 | AU186: =SUM(AU176:AX185) -> 36
G187: G.その他 | AC187: H.
G188: 費 目 | L188: 使 途 | Y188: 金 額 (百万円） | AC188: 費 目 | AH188: 使 途 | AU188: 金 額 (百万円）
G189: 消耗品費 | L189: LTOデータカートリッジ他の購入 | Y189: 1
G190: 庁費（光熱水料） | L190: 電気料 | Y190: 2
G199: 計 | Y199: =SUM(Y189:AB198) -> 3 | AC199: 計 | AU199: =SUM(AU189:AX198) -> 0
G200: Ｉ. | AC200: Ｊ.
G201: 費 目 | L201: 使 途 | Y201: 金 額 (百万円） | AC201: 費 目 | AH201: 使 途 | AU201: 金 額 (百万円）
G212: 計 | Y212: =SUM(Y202:AB211) -> 0 | AC212: 計 | AU212: =SUM(AU202:AX211) -> 0
B215: 支出先上位１０者リスト
B216: A.
C217: 支 出 先 | J217: 法 人 番 号 | P217: 業 務 概 要 | Y217: 支 出 額 （百万円） | AC217: 契約方式 | AH217: 入札者数 （応募者数） | AL217: 落札率 | AP217: 一者応札・一者応募又は 競争性のない随意契約となった 理由及び改善策 （支出額10億円以上）
A218: 1 | B218: 1 | C218: 沖電気工業(株) | J218: 7010401006126 | P218: 人事・給与システムに係るアプリケーション保守業務 | Y218: 1070 | AC218: 一般競争契約 （総合評価） | AH218: 1 | AP218: 他業者が開発したシステム改修はシステム自体を習熟するための費用と時間がかかり、応札するリスクが大きいと考えられるところ。業者が広く参加出来るよう、仕様書等の詳細化、情報開示等の見直しを検討していく。
A219: 2 | B219: 1 | C219: 沖電気工業(株) | J219: 7010401006126 | P219: 人事・給与システムの次期システム更改に伴う影響調査・分析業務 | Y219: 64 | AC219: 一般競争契約 （総合評価） | AH219: 1
A223: 6 | B223: 1
A224: 7 | B224: 1
A225: 8 | B225: 1
A226: 9 | B226: 1
A227: 10 | B227: 1
B229: B.
C230: 支 出 先 | J230: 法 人 番 号 | P230: 業 務 概 要 | Y230: 支 出 額 （百万円） | AC230: 契約方式 | AH230: 入札者数 （応募者数） | AL230: 落札率 | AP230: 一者応札・一者応募又は 競争性のない随意契約となった 理由及び改善策 （支出額10億円以上）
A231: 1 | B231: 1 | C231: 東京センチュリー(株) | J231: 6010401015821 | P231: 人事・給与システムの機器及びソフトウェア賃貸借・保守（政府共通ＰＦへの移行） | Y231: 888 | AC231: 一般競争契約 （総合評価） | AH231: 1
A232: 2 | B232: 1 | C232: 東京センチュリー(株) | J232: 6010401015821 | P232: 人事・給与システムの機器及びソフトウェア賃貸借・保守（政府共通ＰＦ） | Y232: 58 | AC232: 随意契約 （その他） | AH232: -
A233: 3 | B233: 1 | C233: 東京センチュリー(株) | J233: 6010401015821 | P233: 人事・給与システムの機器及びソフトウェア賃貸借・保守業務（第４期） | Y233: 1 | AC233: 随意契約 （その他） | AH233: -
A234: 4 | B234: 1
A235: 5 | B235: 1
A236: 6 | B236: 1
A237: 7 | B237: 1
A238: 8 | B238: 1
A239: 9 | B239: 1
A240: 10 | B240: 1
B242: C.
C243: 支 出 先 | J243: 法 人 番 号 | P243: 業 務 概 要 | Y243: 支 出 額 （百万円） | AC243: 契約方式 | AH243: 入札者数 （応募者数） | AL243: 落札率 | AP243: 一者応札・一者応募又は 競争性のない随意契約となった 理由及び改善策 （支出額10億円以上）
A244: 1 | B244: 1 | C244: 富士通(株) | J244: 1020001071491 | P244: 人事・給与システムの運用サービス業務（政府共通ＰＦ） | Y244: 304 | AC244: 一般競争契約 （総合評価） | AH244: 1
A245: 2 | B245: 1 | C245: 富士通(株) | J245: 1020001071491 | P245: 人事・給与システムのバックアップデータ退避等業務 | Y245: 1 | AC245: 一般競争契約 （最低価格） | AH245: 1
A247: 4 | B247: 1
A248: 5 | B248: 1
A249: 6 | B249: 1
A250: 7 | B250: 1
A251: 8 | B251: 1
A252: 9 | B252: 1
A253: 10 | B253: 1
B255: D.
C256: 支 出 先 | J256: 法 人 番 号 | P256: 業 務 概 要 | Y256: 支 出 額 （百万円） | AC256: 契約方式 | AH256: 入札者数 （応募者数） | AL256: 落札率 | AP256: 一者応札・一者応募又は 競争性のない随意契約となった 理由及び改善策 （支出額10億円以上）
A257: 1 | B257: 1 | C257: りらいあコミュニケーションズ(株) | J257: 9011001029944 | P257: 人事・給与システムのヘルプデスク業務 | Y257: 115 | AC257: 一般競争契約 （総合評価） | AH257: 2
A259: 3 | B259: 1
A260: 4 | B260: 1
A261: 5 | B261: 1
A262: 6 | B262: 1
A263: 7 | B263: 1
A264: 8 | B264: 1
A265: 9 | B265: 1
A266: 10 | B266: 1
B268: E.
C269: 支 出 先 | J269: 法 人 番 号 | P269: 業 務 概 要 | Y269: 支 出 額 （百万円） | AC269: 契約方式 | AH269: 入札者数 （応募者数） | AL269: 落札率 | AP269: 一者応札・一者応募又は 競争性のない随意契約となった 理由及び改善策 （支出額10億円以上）
A270: 1 | B270: 1 | C270: ＰｗＣコンサルティング合同会社 | J270: 1010401023102 | P270: 人事・給与システムのプロジェクト管理支援業務 | Y270: 87 | AC270: 一般競争契約 （総合評価） | AH270: 1
A271: 2 | B271: 1
A272: 3 | B272: 1
A273: 4 | B273: 1
A274: 5 | B274: 1
A275: 6 | B275: 1
A276: 7 | B276: 1
A277: 8 | B277: 1
A278: 9 | B278: 1
A279: 10 | B279: 1
B281: F.
C282: 支 出 先 | J282: 法 人 番 号 | P282: 業 務 概 要 | Y282: 支 出 額 （百万円） | AC282: 契約方式 | AH282: 入札者数 （応募者数） | AL282: 落札率 | AP282: 一者応札・一者応募又は 競争性のない随意契約となった 理由及び改善策 （支出額10億円以上）
A283: 1 | B283: 1 | C283: 伊藤忠テクノソリューションズ(株) | J283: 2010001010788 | P283: 人事・給与システムのプロジェクト管理支援業務 | Y283: 36 | AC283: 随意契約 （その他） | AH283: -
B294: G.
C295: 支 出 先 | J295: 法 人 番 号 | P295: 業 務 概 要 | Y295: 支 出 額 （百万円） | AC295: 契約方式 | AH295: 入札者数 （応募者数） | AL295: 落札率 | AP295: 一者応札・一者応募又は 競争性のない随意契約となった 理由及び改善策 （支出額10億円以上）
A296: 1 | B296: 1 | C296: ソフトブレーン(株) | J296: 1010001132006 | P296: LTOデータカートリッジ他の購入 | Y296: 1 | AC296: 随意契約 （少額） | AH296: 5
A298: 3 | B298: 1
A299: 4 | B299: 1
A300: 5 | B300: 1
A301: 6 | B301: 1
A302: 7 | B302: 1
A303: 8 | B303: 1
A304: 9 | B304: 1
A305: 10 | B305: 1
B307: H.
C308: 支 出 先 | J308: 法 人 番 号 | P308: 業 務 概 要 | Y308: 支 出 額 （百万円） | AC308: 契約方式 | AH308: 入札者数 （応募者数） | AL308: 落札率 | AP308: 一者応札・一者応募又は 競争性のない随意契約となった 理由及び改善策 （支出額10億円以上）
A309: 1 | B309: 1
A310: 2 | B310: 1
A311: 3 | B311: 1
A312: 4 | B312: 1
A313: 5 | B313: 1
A314: 6 | B314: 1
A315: 7 | B315: 1
A316: 8 | B316: 1
A317: 9 | B317: 1
A318: 10 | B318: 1
B320: Ｉ.
C321: 支 出 先 | J321: 法 人 番 号 | P321: 業 務 概 要 | Y321: 支 出 額 （百万円） | AC321: 契約方式 | AH321: 入札者数 （応募者数） | AL321: 落札率 | AP321: 一者応札・一者応募又は 競争性のない随意契約となった 理由及び改善策 （支出額10億円以上）
... 34 more rows

Sheet 入力規則等 (hidden)
A1: 事業番号 | C1: 開始年度 | E1: 終了（予定）年度 | G1: 会計区分 | I1: 主要施策名 | K1: 主要経費名 | M1: 実施方法 | O1: 行政事業レビュー推進チームの所見 | Q1: 所見を踏まえた改善点/概算要求における反映状況 | S1: 契約方式 | U1: ブロック名
A2: 1 | C2: 昭和23年度 | E2: 平成27年度 | G2: 一般会計 | I2: 医療分野の研究開発関連 | K2: 社会保障 | M2: 直接実施 | O2: 廃止 | Q2: 廃止 | S2: 一般競争契約 （最低価格） | U2: Ａ
A3: 2 | C3: 昭和24年度 | E3: 平成28年度 | G3: 交付税及び譲与税配付金特別会計 | I3: 宇宙開発利用 | K3: 文教及び科学振興 | M3: 委託・請負 | O3: 事業全体の 抜本的な改善 | Q3: 縮減 | S3: 一般競争契約 （総合評価） | U3: Ｂ
A4: 3 | C4: 昭和25年度 | E4: 平成29年度 | G4: 地震再保険特別会計 | I4: 沖縄振興 | K4: 恩給関係 | M4: 補助 | O4: 事業内容の 一部改善 | Q4: 執行等改善 | S4: 指名競争契約 （最低価格） | U4: Ｃ
A5: 4 | C5: 昭和26年度 | E5: 平成30年度 | G5: 国債整理基金特別会計 | I5: 海洋政策 | K5: 防衛関係 | M5: 負担 | O5: 終了予定 | Q5: 年度内に改善を検討 | S5: 指名競争契約 （総合評価） | U5: Ｄ
A6: 5 | C6: 昭和27年度 | E6: 平成31年度 | G6: 外国為替資金特別会計 | I6: 科学技術・イノベーション | K6: 公共事業 | M6: 交付 | O6: 現状通り | Q6: 予定通り終了 | S6: 随意契約 （企画競争） | U6: Ｅ
A7: 6 | C7: 昭和28年度 | E7: 平成32年度 | G7: 財政投融資特別会計財政融資資金勘定 | I7: 観光立国 | K7: 経済協力 | M7: 貸付 | Q7: 現状通り | S7: 随意契約 （公募） | U7: Ｆ
A8: 7 | C8: 昭和29年度 | E8: 平成33年度 | G8: 財政投融資特別会計投資勘定 | I8: 交通安全対策 | K8: 中小企業対策 | M8: その他 | S8: 随意契約 （少額） | U8: Ｇ
C9: 昭和30年度 | E9: 平成34年度 | G9: 財政投融資特別会計特定国有財産整備勘定 | I9: 高齢社会対策 | K9: エネルギー対策 | S9: 随意契約 （その他） | U9: Ｈ
C10: 昭和31年度 | E10: 平成35年度 | G10: エネルギー対策特別会計エネルギー需給勘定 | I10: 国土強靭化施策 | K10: 食料安定供給関係 | S10: 国庫債務 負担行為等 | U10: Ｉ
C11: 昭和32年度 | E11: 平成36年度 | G11: エネルギー対策特別会計電源開発促進勘定 | I11: 子ども・若者育成支援 | K11: その他の事項経費 | S11: （諸謝金） | U11: Ｊ
C12: 昭和33年度 | E12: 平成37年度 | G12: エネルギー対策特別会計原子力損害賠償支援勘定 | I12: 自殺対策 | S12: その他 | U12: Ｋ
C13: 昭和34年度 | E13: 平成38年度 | G13: 労働保険特別会計労災勘定 | I13: 障害者施策 | U13: Ｌ
C14: 昭和35年度 | E14: 平成39年度 | G14: 労働保険特別会計雇用勘定 | I14: 少子化社会対策 | U14: Ｍ
C15: 昭和36年度 | E15: 平成40年度 | G15: 労働保険特別会計徴収勘定 | I15: 食育推進 | U15: Ｎ
C16: 昭和37年度 | E16: 平成41年度 | G16: 年金特別会計基礎年金勘定 | I16: 男女共同参画 | U16: Ｏ
C17: 昭和38年度 | E17: 平成42年度 | G17: 年金特別会計国民年金勘定 | I17: 地球温暖化対策 | U17: Ｐ
C18: 昭和39年度 | E18: 平成43年度 | G18: 年金特別会計厚生年金勘定 | I18: 犯罪被害者等施策 | U18: Ｑ
C19: 昭和40年度 | E19: 平成44年度 | G19: 年金特別会計健康勘定 | I19: ＩＴ戦略 | U19: Ｒ
C20: 昭和41年度 | E20: 平成45年度 | G20: 年金特別会計子ども・子育て支援勘定 | I20: クールジャパン | U20: Ｓ
C21: 昭和42年度 | E21: 平成46年度 | G21: 年金特別会計業務勘定 | I21: 知的財産 | U21: Ｔ
C22: 昭和43年度 | E22: 平成47年度 | G22: 食料安定供給特別会計農業経営安定勘定 | I22: 地方創生 | U22: Ｕ
C23: 昭和44年度 | E23: 平成48年度 | G23: 食料安定供給特別会計食糧管理勘定 | I23: ＯＤＡ | U23: Ｖ
C24: 昭和45年度 | E24: 平成49年度 | G24: 食料安定供給特別会計農業共済再保険勘定 | I24: 2020年東京オリパラ | U24: Ｗ
C25: 昭和46年度 | E25: 平成50年度 | G25: 食料安定供給特別会計漁船再保険勘定 | I25: 一億総活躍推進 | U25: Ｘ
C26: 昭和47年度 | E26: 平成51年度 | G26: 食料安定供給特別会計漁業共済保険勘定 | I26: - | U26: Ｙ
C27: 昭和48年度 | E27: 平成52年度 | G27: 食料安定供給特別会計業務勘定 | U27: Ｚ
C28: 昭和49年度 | E28: 平成53年度 | G28: 食料安定供給特別会計国営土地改良事業勘定
C29: 昭和50年度 | E29: 平成54年度 | G29: 国有林野事業債務管理特別会計
C30: 昭和51年度 | E30: 平成55年度 | G30: 貿易再保険特別会計
C31: 昭和52年度 | E31: 平成55年度以降 | G31: 特許特別会計
C32: 昭和53年度 | E32: 終了予定なし | G32: 自動車安全特別会計保障勘定
C33: 昭和54年度 | G33: 自動車安全特別会計自動車検査登録勘定
C34: 昭和55年度 | G34: 自動車安全特別会計自動車事故対策勘定
C35: 昭和56年度 | G35: 自動車安全特別会計空港整備勘定
C36: 昭和57年度 | G36: 東日本大震災復興特別会計
C37: 昭和58年度
C38: 昭和59年度
C39: 昭和60年度
C40: 昭和61年度
C41: 昭和62年度
C42: 昭和63年度
C43: 平成元年度
C44: 平成2年度
C45: 平成3年度
C46: 平成4年度
C47: 平成5年度
C48: 平成6年度
C49: 平成7年度
C50: 平成8年度
C51: 平成9年度
C52: 平成10年度
C53: 平成11年度
C54: 平成12年度
C55: 平成13年度
C56: 平成14年度
C57: 平成15年度
C58: 平成16年度
C59: 平成17年度
C60: 平成18年度
C61: 平成19年度
C62: 平成20年度
C63: 平成21年度
C64: 平成22年度
C65: 平成23年度
C66: 平成24年度
C67: 平成25年度
C68: 平成26年度
C69: 平成27年度
C70: 平成28年度
C71: 平成29年度
C72: 平成30年度
C73: 平成31年度
C100: 新
